Cogmind - Beta 13 @@@ ROGUE MODE // 2024.05.11 @ 19:27:28 Player: BrainTooSmol Result: Destroyed by Y-72 Warden with Railgun Performance ------------- Evolutions (5) 2500 Regions Visited (15) 3000 Robots Destroyed (154) 770 Value Destroyed (3848) 3848 Prototype IDs (17) 340 Alien Tech Used (0) 0 Bonus (1116) 1116 TOTAL SCORE: 11574 Bonus ------- High Alert Combat Kills 66 Follower Combat Kills 1077 Friendly Fire -27 Cogmind --------- Core Integrity 0/1000 Matter 285/300 Energy 130/150 System Corruption 0% Temperature Cool (0) Movement Hovering (180) Ox2 Location -5/Archives Parts ------- > --- POWER (1) -------- Micro Fission Core > --- PROPULSION (4) --- Gravmag System > --- UTILITY (10) ----- ECM Suite Centrium Medium Armor Plating Improved Hacking Suite Improved Hacking Suite Improved System Shield Improved System Shield Advanced System Shield Advanced System Shield Improved System Restoration Module > --- WEAPON (2) ------- Phasing Sabre > --- INVENTORY (5) ---- Light Angular Momentum Engine VTOL Module Authchip [Propulsion] Peak State ------------ > --- POWER ------------ Micro Fission Core > --- PROPULSION ------- Cooled VTOL Module Nuclear Pulse Thruster Nuclear Pulse Thruster Field Propulsion Drive > --- UTILITY ---------- Advanced Sensor Array Advanced Signal Interpreter Reaction Control System Advanced Phase Shifter Hacking Suite Hacking Suite Advanced Hacking Suite Makeshift System Shield Advanced System Shield Advanced System Shield > --- WEAPON ----------- Mini Grenade Launcher CR-A16's Pointy Stick > --- INVENTORY -------- Micro Fission Core Nuclear Pulse Thruster Advanced Weight Redist. System Cloaking Device Authchip [Propulsion] [Rating: 85] Favorites ----------- Power Light Deuterium Engine Engine Light Deuterium Engine Power Core Micro Fission Core Propulsion Wheel Treads Armored Treads Leg Aluminum Leg Wheel Wheel Hover Unit Gravmag System Flight Unit Field Propulsion Drive Utility Hacking Suite Device Improved Sensor Array Storage Large Storage Unit Processor Improved Signal Interpreter Hackware Hacking Suite Protection Hardened Light Armor Plating Weapon Autogun Energy Gun Medium Laser Ballistic Gun Autogun Launcher Mini Grenade Launcher Special Weapon Mining Laser Slashing Weapon Makeshift Sword Piercing Weapon CR-A16's Pointy Stick Build | -11 -10 -10 -9 -9 -8 -7 -7 -7 -7 -6 -6 -5 -5 -5 -5 ------- Run | Yrd Mat Min Mat Min Mat Fac Low Low Zio Pro Fac Fac Ext Cet Arc Slots Evolved 10 | . . . 2 . 2 2 . . . . 2 2 . . . Power . | . . . . . . . . . . . . . . . . Propulsion 2 | . . . . . . 1 . . . . . 1 . . . Utility 8 | . . . 2 . 2 1 . . . . 2 1 . . . Weapon . | . . . . . . . . . . . . . . . . Parts Attached 152 | 1 15 1 26 2 22 26 . 1 6 . 3 22 13 3 11 Power 15 | . 1 1 1 . 5 . . . . . . 5 1 . 1 Engine 6 | . 1 . 1 . 2 . . . . . . 2 . . . Core 9 | . . 1 . . 3 . . . . . . 3 1 . 1 Reactor . | . . . . . . . . . . . . . . . . Propulsion 37 | . 3 . 7 . 1 10 . . . . 1 4 5 2 4 Treads 6 | . 1 . 4 . 1 . . . . . . . . . . Leg . | . . . . . . . . . . . . . . . . Wheel 5 | . 2 . 3 . . . . . . . . . . . . Hover 5 | . . . . . . . . . . . . . 1 . 4 Flight 21 | . . . . . . 10 . . . . 1 4 4 2 . Utility 61 | 1 4 . 7 . 7 10 . 1 3 . 2 13 6 1 6 Device 31 | 1 2 . 1 . 3 6 . . 2 . 1 8 5 1 1 Storage 1 | . 1 . . . . . . . . . . . . . . Processor 4 | . . . . . 2 1 . . . . . 1 . . . Hackware 16 | . . . 1 . . 3 . 1 1 . 1 4 1 . 4 Protection 9 | . 1 . 5 . 2 . . . . . . . . . 1 Artifact . | . . . . . . . . . . . . . . . . Weapon 39 | . 7 . 11 2 9 6 . . 3 . . . 1 . . Energy Gun . | . . . . . . . . . . . . . . . . Energy Cannon . | . . . . . . . . . . . . . . . . Ballistic Gun 22 | . 5 . 9 1 7 . . . . . . . . . . Ballistic Cannon . | . . . . . . . . . . . . . . . . Launcher 6 | . . . 1 1 1 3 . . . . . . . . . Special Weapon 2 | . 2 . . . . . . . . . . . . . . Impact Weapon . | . . . . . . . . . . . . . . . . Slashing Weapon 7 | . . . 1 . 1 3 . . 1 . . . 1 . . Piercing Weapon 2 | . . . . . . . . . 2 . . . . . . Special Melee Weapon . | . . . . . . . . . . . . . . . . Unidentified Prototypes 6 | . . . . . . 3 . . 1 . . 1 . . 1 Parts Lost 45 | . 2 . 3 . 5 1 . 2 . . 2 9 4 12 5 Power 4 | . 1 . 1 . . . . . . . 1 . . 1 . Propulsion 17 | . . . 1 . . 1 . . . . . 5 2 4 4 Utility 21 | . 1 . 1 . 3 . . 2 . . 1 3 2 7 1 Weapon 3 | . . . . . 2 . . . . . . 1 . . . Highest Loss Streak 12 | . 1 . 2 . 1 1 . 2 . . 1 9 1 12 5 To Critical Strikes . | . . . . . . . . . . . . . . . . Average Slot Usage (%) 92 | . 98 100 96 100 90 95 100 98 97 100 90 90 78 82 64 Engine 6 | . 14 12 2 11 7 7 7 7 7 7 6 . . . . Core 2 | . . 1 5 . 1 . . . . . . 4 5 4 4 Treads 6 | . 12 14 11 11 9 . . . . . . . . . . Wheel 6 | . 14 14 10 11 9 . . . . . . . . . . Hover 1 | . . . . . . . . . . . . . . 5 19 Flight 7 | . . . . . . 22 23 23 23 23 20 22 10 12 2 Device 13 | . 12 14 11 11 11 18 15 15 14 15 10 11 19 19 10 Storage 6 | . 14 14 11 11 9 . . . . . . . . . . Processor 3 | . . . . . 7 8 7 7 7 7 6 5 5 5 4 Hackware 15 | . . . 10 11 9 24 30 28 27 30 33 32 28 26 11 Protection 4 | . . . 10 11 8 . . . . . . . . . . Ballistic Gun 12 | . 25 28 21 21 17 . . . . . . . . . . Launcher 1 | . . . . . . 4 7 7 7 7 6 4 . . . Slashing Weapon 1 | . . . . . . 6 7 7 . . . . 1 5 5 Piercing Weapon 1 | . . . . . . . . . 6 7 6 5 3 . . Naked Turns . | . . . . . . . . . . . . . . . . Heaviest Build 52 | 13 30 30 39 39 52 52 10 10 11 11 11 18 13 13 20 Greatest Support 40 | 20 20 10 40 12 18 19 17 17 17 17 18 24 24 24 37 Greatest Overweight (x) 4 | . 2 2 3 3 4 4 . . . . . . 3 . 2 Average Overweight (x) . | . 1 2 2 3 2 . . . . . . . . . . Largest Inventory Capacity 15 | 8 15 15 15 15 15 15 5 5 5 5 5 5 5 5 5 Average Capacity 10 | 8 14 15 15 15 15 5 5 5 5 5 5 5 5 5 5 Most Carried 15 | 8 12 15 15 15 15 14 5 5 5 5 5 5 4 3 3 Average Carried 8 | 6 7 12 11 15 14 5 5 4 4 5 4 4 3 2 2 Final Capacity 15 | 8 15 15 15 15 15 5 5 5 5 5 5 5 5 5 5 Final Carried 15 | 7 12 14 15 15 14 5 5 4 5 5 5 3 3 3 3 Class Distribution -------------------- 50% | Mutant 15% | Hacker-Sprinter 12% | Hacker-Mutant 8% | Scavenger-Mutant 5% | Hacker-Scout 4% | Wizard-Sprinter Dominant Class ---------------- Mutant | -10/Materials Mutant | -10/Mines Scavenger-Mutant | -9/Materials Mutant | -9/Mines Mutant | -8/Materials Hacker-Scout | -7/Factory Hacker-Sprinter | -7/Lower Caves Hacker-Sprinter | -7/Lower Caves Hacker-Sprinter | -7/Zion Hacker-Sprinter | -6/Proximity Caves Hacker-Mutant | -6/Factory Wizard-Sprinter | -5/Factory Hacker-Sprinter | -5/Extension Hacker-Mutant | -5/Cetus Hacker-Mutant | -5/Archives Resources | -11 -10 -10 -9 -9 -8 -7 -7 -7 -7 -6 -6 -5 -5 -5 -5 ----------- Run | Yrd Mat Min Mat Min Mat Fac Low Low Zio Pro Fac Fac Ext Cet Arc Matter Collected 4186 | 210 438 72 1032 209 1323 249 25 79 78 . 30 84 231 46 80 Remotely . | . . . . . . . . . . . . . . . . Salvage Created 5297 | 146 499 . 1464 262 1691 191 . 28 . . 375 270 168 . 203 Parts 364 | 12 32 . 107 10 121 14 . 4 . . 12 24 6 . 22 Haulers Intercepted 12 | . 1 . 4 . 4 . . . . . 3 . . . . Recyclers Shooed 2 | . . . . . 1 . . . . . . 1 . . . Parts Field Recycled . | . . . . . . . . . . . . . . . . Retrieved Matter . | . . . . . . . . . . . . . . . . Parts Self-Destructed 13 | . . . . . . . 5 8 . . . . . . . Prevented . | . . . . . . . . . . . . . . . . Kills | -11 -10 -10 -9 -9 -8 -7 -7 -7 -7 -6 -6 -5 -5 -5 -5 ------- Run | Yrd Mat Min Mat Min Mat Fac Low Low Zio Pro Fac Fac Ext Cet Arc Combat Hostiles Destroyed 89 | . 8 . 31 6 35 . . . . . . 6 3 . . Melee 3 | . . . . . . . . . . . . . 3 . . Guns 69 | . 8 . 26 4 31 . . . . . . . . . . AOE 17 | . . . 5 2 4 . . . . . . 6 . . . Classes Destroyed 16 | 2 5 . 4 1 1 . . 1 . . . 1 1 . . Worker 7 | . . . 1 . 1 1 . . . . . 4 . . . Builder 7 | . 2 . 2 . 2 . . . . . . 1 . . . Tunneler 5 | 4 . . . . 1 . . . . . . . . . . Hauler 12 | . 1 . 4 . 4 . . . . . 3 . . . . Recycler 6 | 1 . . . 1 2 1 . . . . . 1 . . . Minesweeper 1 | . . . . . . . . 1 . . . . . . . Operator 13 | . 2 . 2 . 1 1 . . . . . 1 . . 6 Watcher 16 | . 3 . 5 . 3 3 . . . . 1 1 . . . Swarmer 26 | . . . 7 . 15 . . . . . . 4 . . . Cutter 2 | . . . . . . . . . . . . 2 . . . Grunt 40 | . 8 . 15 3 12 . . . . . . . 2 . . Brawler 2 | . . . 1 1 . . . . . . . . . . . Sentry 15 | . . . 8 . 7 . . . . . . . . . . Hunter 1 | . . . . . 1 . . . . . . . . . . Programmer 1 | . . . . . . . . . . . . . 1 . . Assembled 2 | . . . . 2 . . . . . . . . . . . Best Kill Streak 13 | 4 3 . 7 3 7 2 . 1 . . 1 13 2 . 2 Combat Bots Only 6 | . 2 . 5 3 5 . . . . . . 6 2 . . Max Kills in Single Turn 8 | 1 1 . 3 1 3 1 . 1 . . 1 8 1 . 1 Gunslinging 1 | . . . 1 . 1 . . . . . . . . . . Exploded 3 | . . . 2 1 2 . . . . . . 3 . . . Melee 1 | . . . . . . . . . . . . . 1 . . Uniques/NPCs Destroyed . | . . . . . . . . . . . . . . . . Combat | -11 -10 -10 -9 -9 -8 -7 -7 -7 -7 -6 -6 -5 -5 -5 -5 -------- Run | Yrd Mat Min Mat Min Mat Fac Low Low Zio Pro Fac Fac Ext Cet Arc Hostile Shots Fired 634 | . 42 . 125 23 182 8 . 11 . . 26 57 41 76 43 Missed 241 | . 9 . 36 7 59 3 . 7 . . 15 27 19 43 16 Damage Taken 6462 | . 453 . 1145 279 1603 93 . 159 . . 120 799 442 627 742 Core 1753 | . 100 . 219 42 277 21 . 53 . . 36 390 227 188 200 Absorbed by Shields 85 | . . . . . . . . . . . . . 85 . . Regen/Repaired (Parts) 730 | . 69 . 269 . 287 18 . . 67 . . 20 . . . Core Remaining (%) 71 | 100 . 60 . 34 49 . . . . 89 95 . . . . Volleys Fired 359 | 11 75 . 110 12 141 . 8 . . . . 2 . . . Largest 2 | 2 2 . 2 2 2 . 1 . . . . 1 . . . Hottest 100 | 100 100 . 46 46 48 . 30 . . . . 30 . . . Shots Fired 685 | 22 135 . 215 24 279 . 8 . . . . 2 . . . Gun 650 | 22 120 . 210 22 276 . . . . . . . . . . Cannon . | . . . . . . . . . . . . . . . . Launcher 20 | . . . 5 2 3 . 8 . . . . 2 . . . Special 15 | . 15 . . . . . . . . . . . . . . Kinetic 628 | . 120 . 210 22 276 . . . . . . . . . . Thermal 37 | 22 15 . . . . . . . . . . . . . . Explosive 20 | . . . 5 2 3 . 8 . . . . 2 . . . Electromagnetic . | . . . . . . . . . . . . . . . . Robot Hit Streak 18 | 7 9 . 18 9 15 . . . . . . 5 . . . Robot Miss Streak 4 | 3 3 . 3 2 4 . . . . . . . . . . Penetration Max . | . . . . . . . . . . . . . . . . Secondary Targets 4 | . . . 1 . 3 . . . . . . . . . . Max Gunslinging Chain 1 | . . . 1 . 1 . . . . . . . . . . Shots Hit Robots 493 | 15 83 . 143 13 198 11 . 1 . . 7 4 9 . 9 Core Hits 235 | 6 34 . 65 9 82 4 . 1 . . 4 18 5 . 7 Critical Kills 5 | . . . 3 1 1 . . . . . . . . . . Critical Parts Destroyed 2 | . 1 . 1 . . . . . . . . . . . . Critical Strikes 10 | 1 1 . 4 1 1 . . . . . 2 . . . . Burn 1 | 1 . . . . . . . . . . . . . . . Destroy 7 | . 1 . 4 1 1 . . . . . . . . . . Impale 2 | . . . . . . . . . . . 2 . . . . Melee Attacks 133 | . . . 1 . 4 29 3 5 1 . 22 30 19 . 19 Impact . | . . . . . . . . . . . . . . . . Slashing 61 | . . . 1 . 4 29 3 5 . . . . . . 19 Piercing 72 | . . . . . . . . . 1 . 22 30 19 . . Sneak Attacks 14 | . . . . . . 4 . 1 . . 3 . . . 6 Combat Hostiles . | . . . . . . . . . . . . . . . . Follow-up Attacks . | . . . . . . . . . . . . . . . . Damage Inflicted 11447 | 199 1030 . 2683 391 3347 676 . 81 . . 460 1340 358 . 882 Guns 6457 | 199 982 . 2118 171 2987 . . . . . . . . . . Cannons . | . . . . . . . . . . . . . . . . Explosions 2334 | . . . 565 220 360 . . . . . . 1189 . . . Melee 2608 | . . . . . . 676 . 81 . . 460 151 358 . 882 Ramming . | . . . . . . . . . . . . . . . . Kinetic 6258 | . 982 . 2118 171 2987 . . . . . . . . . . Thermal 247 | 199 48 . . . . . . . . . . . . . . Explosive 2334 | . . . 565 220 360 . . . . . . 1189 . . . Electromagnetic . | . . . . . . . . . . . . . . . . Impact . | . . . . . . . . . . . . . . . . Slashing 1639 | . . . . . . 676 . 81 . . . . . . 882 Piercing 969 | . . . . . . . . . . . 460 151 358 . . Highest Corruption 5 | . . . 5 5 3 1 1 2 2 . . 2 5 5 5 Average Corruption 3 | . . . 4 5 2 1 1 1 2 . . 1 4 5 3 Corruption Purged 5 | . . . . . . . . . . . . . . . 5 Corruption Blocked . | . . . . . . . . . . . . . . . . Effects 115 | . . . 11 36 23 . 3 6 1 . . . 30 2 3 Message Errors 31 | . . . 2 12 6 . . 1 . . . . 8 1 1 Matter Fused 28 | . . . 5 10 3 . 1 1 1 . . . 6 1 . Heat Flow Errors 13 | . . . 2 2 3 . 2 1 . . . . 2 . 1 Energy Discharges 12 | . . . . 2 5 . . 1 . . . . 3 . 1 Parts Fused 2 | . . . . 1 1 . . . . . . . . . . Data Loss (minor) 14 | . . . 1 2 2 . . 1 . . . . 8 . . Data Loss (major) 8 | . . . 1 3 . . . 1 . . . . 3 . . Misfires 4 | . . . . 2 2 . . . . . . . . . . Alerts 3 | . . . . 2 1 . . . . . . . . . . Overload Shots . | . . . . . . . . . . . . . . . . Overflow Damage 441 | . . . 15 . 17 216 . . . . . 37 49 . 107 Projectiles . | . . . . . . . . . . . . . . . . Explosions 64 | . . . 15 . 17 . . . . . . 32 . . . Melee 377 | . . . . . . 216 . . . . . 5 49 . 107 Knockbacks . | . . . . . . . . . . . . . . . . Impact . | . . . . . . . . . . . . . . . . Kinetic . | . . . . . . . . . . . . . . . . Secondary . | . . . . . . . . . . . . . . . . Self-Inflicted Damage 162 | . . . 29 . 21 . . . . . . 112 . . . Shots 6 | . . . 1 . 2 . . . . . . 3 . . . Rammed . | . . . . . . . . . . . . . . . . Targets Rammed . | . . . . . . . . . . . . . . . . Kicked . | . . . . . . . . . . . . . . . . Crushed . | . . . . . . . . . . . . . . . . Highest Temperature 272 | 196 80 . 256 184 192 . 231 172 . . . . 272 . 218 Average Temperature 37 | 81 24 . 31 42 22 . 96 87 . . . . 125 . 116 Received Heat Transfer 1809 | . 279 . 441 48 657 . . . . . 12 48 77 130 117 Siege Activations . | . . . . . . . . . . . . . . . . Robots Corrupted . | . . . . . . . . . . . . . . . . Combat Hostiles . | . . . . . . . . . . . . . . . . Parts Fried . | . . . . . . . . . . . . . . . . Impact Corruptions . | . . . . . . . . . . . . . . . . Robots Melted . | . . . . . . . . . . . . . . . . Combat Hostiles . | . . . . . . . . . . . . . . . . Parts Melted 2 | . . . 1 . . . . . . . . . 1 . . Heat Transferred 766 | 666 100 . . . . . . . . . . . . . . Parts Sabotaged . | . . . . . . . . . . . . . . . . Parts Stolen . | . . . . . . . . . . . . . . . . Parts Stripped . | . . . . . . . . . . . . . . . . Power Chain Reactions . | . . . . . . . . . . . . . . . . Alert | -11 -10 -10 -9 -9 -8 -7 -7 -7 -7 -6 -6 -5 -5 -5 -5 ------- Run | Yrd Mat Min Mat Min Mat Fac Low Low Zio Pro Fac Fac Ext Cet Arc Peak Influence 578 | 25 221 58 424 163 490 324 . . . . 191 578 431 178 60 Initial 275 | . 16 31 22 61 . 196 . . . . . 44 275 156 8 Average 147 | 9 63 26 146 40 288 160 . . . . 84 177 307 97 16 Maximum Alert Level 2 | . 1 . 2 . 2 1 . . . . . 2 2 . . Low Security (%) 71 | 100 97 100 81 100 31 74 . . . . 100 57 . 100 100 Level 1 23 | . 2 . 16 . 41 25 . . . . . 39 91 . . Level 2 5 | . . . 1 . 26 . . . . . . 3 8 . . Level 3 . | . . . . . . . . . . . . . . . . Level 4 . | . . . . . . . . . . . . . . . . Level 5 . | . . . . . . . . . . . . . . . . High Security . | . . . . . . . . . . . . . . . . Max Security . | . . . . . . . . . . . . . . . . Squads Dispatched 43 | . 5 . 6 . 5 11 . . . . 4 10 2 . . Investigation 21 | . 3 . 4 . 3 7 . . . . 1 3 . . . Extermination 6 | . . . . . . 3 . . . . 2 1 . . . Reinforcement 16 | . 2 . 2 . 2 1 . . . . 1 6 2 . . Assault . | . . . . . . . . . . . . . . . . Garrison . | . . . . . . . . . . . . . . . . Intercept . | . . . . . . . . . . . . . . . . Searches Triggered . | . . . . . . . . . . . . . . . . Construction Impeded 3 | . . . . . 1 . . . . . . 1 1 . . Haulers Reinforced . | . . . . . . . . . . . . . . . . Active Scanning Responses . | . . . . . . . . . . . . . . . . Cargo Convoy Interrupts 1 | . . . . . . . . . . . . 1 . . . Stealth | -11 -10 -10 -9 -9 -8 -7 -7 -7 -7 -6 -6 -5 -5 -5 -5 --------- Run | Yrd Mat Min Mat Min Mat Fac Low Low Zio Pro Fac Fac Ext Cet Arc Distress Signals 16 | . . . 3 1 3 . . . . . 1 4 2 2 . Communications Jammed . | . . . . . . . . . . . . . . . . Distress Signals . | . . . . . . . . . . . . . . . . Times Spotted 259 | . 24 . 45 7 59 13 1 11 . . 9 42 28 14 6 Peak Tracking Total 11 | . 3 . 5 3 8 4 1 5 . . 3 11 6 10 4 Tactical Retreats 26 | . 2 . 2 1 3 1 1 4 . . 3 8 . 1 . Traps | -11 -10 -10 -9 -9 -8 -7 -7 -7 -7 -6 -6 -5 -5 -5 -5 ------- Run | Yrd Mat Min Mat Min Mat Fac Low Low Zio Pro Fac Fac Ext Cet Arc Traps Triggered 13 | . 1 . 5 . 2 3 . . . . . . 2 . . Indirectly . | . . . . . . . . . . . . . . . . Trap Hack Attempts . | . . . . . . . . . . . . . . . . Triggered . | . . . . . . . . . . . . . . . . Disarmed . | . . . . . . . . . . . . . . . . Reprogrammed . | . . . . . . . . . . . . . . . . Reused . | . . . . . . . . . . . . . . . . Traps Extracted . | . . . . . . . . . . . . . . . . Installed . | . . . . . . . . . . . . . . . . Triggered 2 | . . . . . . . . . . . . 2 . . . Machines | -11 -10 -10 -9 -9 -8 -7 -7 -7 -7 -6 -6 -5 -5 -5 -5 ---------- Run | Yrd Mat Min Mat Min Mat Fac Low Low Zio Pro Fac Fac Ext Cet Arc Machines Disabled 12 | . . . . 2 1 . . . . . . 6 1 . 2 Max in Single Turn 6 | . . . . 1 1 . . . . . . 6 . . 1 Garrison Access 4 | . . . . . 1 2 . . . . . 1 . . . Machines Repaired . | . . . . . . . . . . . . . . . . Machines Dismantled . | . . . . . . . . . . . . . . . . Machines Sabotaged . | . . . . . . . . . . . . . . . . Overloaded Fab Kills . | . . . . . . . . . . . . . . . . Hacking | -11 -10 -10 -9 -9 -8 -7 -7 -7 -7 -6 -6 -5 -5 -5 -5 --------- Run | Yrd Mat Min Mat Min Mat Fac Low Low Zio Pro Fac Fac Ext Cet Arc Machines Accessed 93 | . 9 1 13 1 11 25 . . . . 10 14 9 . . Terminals 56 | . 6 1 7 1 7 12 . . . . 6 7 9 . . Fabricators 5 | . . . . . . 2 . . . . 1 2 . . . Repair Stations 7 | . 1 . 2 . 1 2 . . . . . 1 . . . Recycling Units 12 | . 2 . 2 . 2 3 . . . . 2 1 . . . Scanalyzers 7 | . . . 2 . . 2 . . . . 1 2 . . . Garrison Access 6 | . . . . . 1 4 . . . . . 1 . . . Total Hacks 288 | . 27 2 53 3 24 69 . . . . 30 60 20 . . Successful 192 | . 19 1 41 1 17 49 . . . . 18 34 12 . . Failed 95 | . 8 1 12 2 7 20 . . . . 12 25 8 . . Catastrophic 8 | . . 1 . . 1 3 . . . . 3 . . . . Database Lockouts 1 | . . . . . . . . . . . . 1 . . . Manual 135 | . 22 2 23 5 14 22 . 1 4 . 14 21 7 . . Terminals 176 | . 19 2 30 3 15 34 . . . . 22 31 20 . . Fabricators 11 | . . . . . . 3 . . . . 1 7 . . . Repair Stations 28 | . 2 . 12 . 4 3 . . . . . 7 . . . Recycling Units 34 | . 6 . 5 . 4 10 . . . . 5 4 . . . Scanalyzers 30 | . . . 6 . . 12 . . . . 2 10 . . . Garrison Access 9 | . . . . . 1 7 . . . . . 1 . . . Terminal Hacks 76 | . 7 1 19 1 6 15 . . . . 10 9 8 . . Part Schematic 3 | . 1 . . . . 1 . . . . . 1 . . . Robot Analysis 7 | . 4 1 1 . . . . . . . . 1 . . . Prototype ID Bank 7 | . . . 7 . . . . . . . . . . . . Open Door 5 | . . . . . . . . . . . . . 5 . . Level Access Points 2 | . . . . . . . . . . . 1 1 . . . Branch Access Points 3 | . . . 1 . . 1 . . . . 1 . . . . Emergency Access Points 2 | . . . 1 . . . . . . . . 1 . . . Machine Index 2 | . . . . . . 1 . . . . . 1 . . . Terminal Index 5 | . 1 . 1 . 1 1 . . . . . . 1 . . Recycling Unit Index 1 | . . . . . . . . . . . 1 . . . . Scanalyzer Index 1 | . . . . . . 1 . . . . . . . . . Alert Level 5 | . . . 2 . 3 . . . . . . . . . . Unreport Threat 4 | . . . 3 . 1 . . . . . . . . . . Locate Traps 2 | . . . . . . . . . . . 1 1 . . . Dispatch Records 2 | . . . . . . 1 . . . . . . 1 . . Maintenance Status 2 | . . . . . . 1 . . . . . 1 . . . Patrol Status 3 | . . . 1 . . 1 . . . . 1 . . . . Transport Status 1 | . . . 1 . . . . . . . . . . . . Recall Investigation 2 | . . . . . . 1 . . . . . 1 . . . Recall Extermination 4 | . . . . . . 2 . . . . 2 . . . . Recall Reinforcements 1 | . . . . . . 1 . . . . . . . . . Hauler Manifests 5 | . . . 1 . 1 1 . . . . 1 1 . . . Registered Components 2 | . . . . . . 1 . . . . 1 . . . . Zone Layout 5 | . 1 . . 1 . 1 . . . . 1 . 1 . . Fabricator Hacks 8 | . . . . . . 3 . . . . 1 4 . . . Network Status 2 | . . . . . . 1 . . . . 1 . . . . Load Schematic 3 | . . . . . . 1 . . . . . 2 . . . Build 3 | . . . . . . 1 . . . . . 2 . . . Repair Station Hacks 25 | . 2 . 12 . 4 2 . . . . . 5 . . . Scan Component 13 | . 1 . 6 . 2 1 . . . . . 3 . . . Repair 12 | . 1 . 6 . 2 1 . . . . . 2 . . . Recycling Unit Hacks 14 | . 2 . 2 . 1 5 . . . . 1 3 . . . Process 1 | . . . . . . . . . . . . 1 . . . Report Inventory 10 | . 2 . 2 . 1 3 . . . . 1 1 . . . Retrieve Matter 2 | . . . . . . 1 . . . . . 1 . . . Retrieve Components 1 | . . . . . . 1 . . . . . . . . . Scanalyzer 23 | . . . 2 . . 12 . . . . 2 7 . . . Insert Component 12 | . . . 1 . . 6 . . . . 1 4 . . . Analyze 11 | . . . 1 . . 6 . . . . 1 3 . . . Garrison Access Hacks 4 | . . . . . 1 2 . . . . . 1 . . . Seal Access 4 | . . . . . 1 2 . . . . . 1 . . . Unauthorized Hacks 42 | . 8 . 6 . 5 10 . . . . 4 5 4 . . Terminals 29 | . 5 . 4 . 3 5 . . . . 4 4 4 . . Assimilate 11 | . 2 . . . 2 4 . . . . . 2 1 . . Botnet 10 | . 2 . 3 . . 1 . . . . 3 1 . . . Disrupt 2 | . . . . . . . . . . . . . 2 . . Operators 6 | . 1 . 1 . 1 . . . . . 1 1 1 . . Fabricators . | . . . . . . . . . . . . . . . . Repair Stations . | . . . . . . . . . . . . . . . . Recycling Units 11 | . 3 . 2 . 2 3 . . . . . 1 . . . Recyclers 1 | . 1 . . . . . . . . . . . . . . Tunnel 10 | . 2 . 2 . 2 3 . . . . . 1 . . . Scanalyzers . | . . . . . . . . . . . . . . . . Garrison Access 2 | . . . . . . 2 . . . . . . . . . Decoy 1 | . . . . . . 1 . . . . . . . . . Watchers 1 | . . . . . . 1 . . . . . . . . . Data Cores Recovered . | . . . . . . . . . . . . . . . . Used . | . . . . . . . . . . . . . . . . Hacking Detections 59 | . 6 1 10 . 7 17 . . . . 5 9 4 . . Full Trace Events 11 | . . . 3 . 2 3 . . . . 1 2 . . . Feedback Events . | . . . . . . . . . . . . . . . . Feedback Blocked . | . . . . . . . . . . . . . . . . Robot Schematics Acquired 3 | . . . . . . . . . 3 . . . . . . Robots Built . | . . . . . . . . . . . . . . . . Authchips . | . . . . . . . . . . . . . . . . Time . | . . . . . . . . . . . . . . . . Total Robot Build Rating . | . . . . . . . . . . . . . . . . Part Schematics Acquired 29 | . 1 . 1 . . 7 . . 15 . 1 4 . . . Parts Built 4 | . . . . . . 2 . . . . . 2 . . . Authchips . | . . . . . . . . . . . . . . . . Time 205 | . . . . . . 106 . . . . . 99 . . . Total Part Build Rating 27 | . . . . . . 12 . . . . . 15 . . . Parts Repaired 12 | . 1 . 6 . 2 1 . . . . . 2 . . . Time 365 | . 26 . 180 . 70 19 . . . . . 70 . . . Parts Recycled . | . . . . . . . . . . . . . . . . Recycled Matter 46 | . . . . . . . . . . . . 46 . . . Retrieved Matter 46 | . . . . . . . . . . . . 46 . . . Retrieved Components 5 | . . . . . . 5 . . . . . . . . . Parts Scanalyzed 11 | . . . 1 . . 6 . . . . 1 3 . . . Part Schematics Acquired 11 | . . . 1 . . 6 . . . . 1 3 . . . Parts Damaged 1 | . . . . . . . . . . . . 1 . . . Bothacking | -11 -10 -10 -9 -9 -8 -7 -7 -7 -7 -6 -6 -5 -5 -5 -5 ------------ Run | Yrd Mat Min Mat Min Mat Fac Low Low Zio Pro Fac Fac Ext Cet Arc Used RIF Installer . | . . . . . . . . . . . . . . . . Robots Hacked . | . . . . . . . . . . . . . . . . Non-combat . | . . . . . . . . . . . . . . . . Combat . | . . . . . . . . . . . . . . . . Robot Hacks Applied . | . . . . . . . . . . . . . . . . Relay Couplers Released . | . . . . . . . . . . . . . . . . Fabnet Peak Effective % . | . . . . . . . . . . . . . . . . Robots Rewired 15 | . . . . . . . . . . . . . 15 . . Allies Hacked 1 | . . . . . . . . . . . . 1 . . . Hacks Repelled . | . . . . . . . . . . . . . . . . Allies | -11 -10 -10 -9 -9 -8 -7 -7 -7 -7 -6 -6 -5 -5 -5 -5 -------- Run | Yrd Mat Min Mat Min Mat Fac Low Low Zio Pro Fac Fac Ext Cet Arc Total Allies 33 | . 1 3 . 1 1 4 . . . . . 2 21 . . Largest Group 10 | . 1 3 2 1 1 3 . . . . . 1 10 10 . Highest-Rated Group 275 | . 10 40 24 31 10 46 . . . . . 10 275 264 . Highest-Rated Ally 159 | . 10 16 16 31 10 26 . . . . . 10 159 39 . Total Orders 16 | . . . . . . 9 . . . . . 4 3 . . STAY 9 | . . . . . . 5 . . . . . 2 2 . . FOLLOW 7 | . . . . . . 4 . . . . . 2 1 . . Ally Attacks 179 | . . 9 11 1 . . . . . . . . 131 27 . Total Damage 3739 | . . 46 108 20 . . . . . . . . 3092 473 . Kills 31 | . . 3 3 . . . . . . . . . 21 4 . Allies Corrupted . | . . . . . . . . . . . . . . . . Allies Melted . | . . . . . . . . . . . . . . . . Intel | -11 -10 -10 -9 -9 -8 -7 -7 -7 -7 -6 -6 -5 -5 -5 -5 ------- Run | Yrd Mat Min Mat Min Mat Fac Low Low Zio Pro Fac Fac Ext Cet Arc Robot Analysis Total 7 | . 4 1 1 . . . . . . . . 1 . . . Derelict Logs Recovered 7 | . . 1 . 2 . . 2 . 2 . . . . . . Drone Launches . | . . . . . . . . . . . . . . . . Drone Recoveries . | . . . . . . . . . . . . . . . . Exploration | -11 -10 -10 -9 -9 -8 -7 -7 -7 -7 -6 -6 -5 -5 -5 -5 ------------- Run | Yrd Mat Min Mat Min Mat Fac Low Low Zio Pro Fac Fac Ext Cet Arc Turns Passed 16179 | 112 1900 765 2561 1618 2546 1456 357 361 541 63 684 999 1251 100 865 Spaces Moved 17599 | 50 1303 586 1388 745 1212 3600 865 840 1434 171 1273 2470 1386 145 131 Core 383 | . . . . . . . . . . . . . 383 . . Treads 22 | . . . 22 . . . . . . . . . . . . Legs 101 | 50 51 . . . . . . . . . . . . . . Wheels 5167 | . 1252 586 1366 745 1212 6 . . . . . . . . . Hover 168 | . . . . . . . . . . . . . . 37 131 Flight 11758 | . . . . . . 3594 865 840 1434 171 1273 2470 1003 108 . Fastest Speed 29 | 120 80 110 110 135 105 29 32 32 32 32 32 30 29 32 48 Average Speed 60 | 120 108 110 126 135 132 32 32 32 32 32 33 31 41 41 52 Slowest Speed 200 | 120 120 110 160 135 150 150 32 32 32 32 34 40 200 60 180 Overloaded Moves . | . . . . . . . . . . . . . . . . Propulsion Burnouts . | . . . . . . . . . . . . . . . . Robots Hopped 43 | . . . . . . 3 . . . . 12 12 15 1 . Cave-ins Triggered 1 | . . . . . . . . 1 . . . . . . . Exploration Rate (%) 68 | 4 99 98 93 97 67 70 80 74 81 36 40 48 87 52 71 Regions Visited 15 Branch Regions 9 Pre-discovered Areas 16 | . 2 1 2 . 2 3 1 . 4 . . 1 . . . Known Exits Taken 11 | . . . 1 1 . 1 1 1 1 1 1 1 1 1 . Unknown Exits Taken 4 | 1 1 1 . . 1 . . . . . . . . . . Scrap Searched 14 | . . 1 . 1 . . 6 1 3 2 . . . . . Spaces Dug 149 | . 13 . 1 . 4 13 81 4 . . 11 20 1 . 1 Terrain Destroyed 267 | . 13 . 40 20 28 13 94 4 . . 11 42 1 . 1 Melee 56 | . . . 1 . 4 13 1 4 . . 11 20 1 . 1 Projectile 13 | . 13 . . . . . . . . . . . . . . AOE 198 | . . . 39 20 24 . 93 . . . . 22 . . . Terrain Rammed . | . . . . . . . . . . . . . . . . Walls Destroyed . | . . . . . . . . . . . . . . . . Machines Disabled . | . . . . . . . . . . . . . . . . Actions | -11 -10 -10 -9 -9 -8 -7 -7 -7 -7 -6 -6 -5 -5 -5 -5 --------- Run | Yrd Mat Min Mat Min Mat Fac Low Low Zio Pro Fac Fac Ext Cet Arc Total 22253 | 80 1619 707 1992 1339 1915 3870 933 926 1512 178 1473 2619 2011 183 896 Wait 3801 | 15 213 114 429 579 515 165 58 81 67 8 181 93 515 36 732 Move 17503 | 49 1302 585 1387 744 1211 3593 864 839 1433 170 1249 2446 1358 142 131 Hop 38 | . . . . . . 3 . . . . 11 11 12 1 . Pick Up 65 | 3 9 4 18 1 9 8 . . 1 . 3 3 3 1 2 Fast Attach 71 | . 4 . 4 . 7 15 . . 4 . 2 14 10 2 9 Attach 37 | 1 4 . 6 . 4 10 . 1 . . 1 5 2 1 2 Detach 6 | . . . . . . 2 . . 1 . . 2 1 . . Swap 44 | . 7 1 16 2 11 1 . . 2 . . 3 1 . . Drop 92 | 1 5 3 21 1 13 26 . . 3 . 4 10 4 . 1 Fire 359 | 11 75 . 110 12 141 . 8 . . . . 2 . . . Melee 133 | . . . 1 . 4 29 3 5 1 . 22 30 19 . 19 Ram . | . . . . . . . . . . . . . . . . Kick . | . . . . . . . . . . . . . . . . Crush . | . . . . . . . . . . . . . . . . Escape Stasis 36 | . . . . . . 18 . . . . . . 18 . . Rewire 68 | . . . . . . . . . . . . . 68 . . Trap . | . . . . . . . . . . . . . . . . Miscellaneous . | . . . . . . . . . . . . . . . . Route ------- -11/Scrapyard -10/Materials (discovered 6 exits: *Mat x3 / *Min x2 / [*Sub]) -10/Mines (discovered 3 exits: *Mat x2 / [*Exi]) -9/Materials (discovered 5 exits: *Mat x3 / *Min / *Sto) -9/Mines (discovered 2 exits: *Mat x2) -8/Materials -7/Factory (discovered 3 exits: *Fac / *Low x2) -7/Lower Caves -7/Lower Caves -7/Zion (discovered 2 exits: *Dee / *Pro) -6/Proximity Caves -6/Factory (discovered 6 exits: *Fac x4 / *Low x2) -5/Factory (discovered 5 exits: Fac x4 / *Ext) -5/Extension (discovered 2 exits: *Fac / *Cet) -5/Cetus -5/Archives (discovered 2 exits: [*Hub x2]) History --------- Turn | Location | Event 1 | -11/Scrapyard | Discovered new exit (range 3) 113 | -11/Scrapyard | Entered Materials 300 | -10/Materials | Build established: Mutant 372 | -10/Materials | Discovered new exit (range 16) 584 | -10/Materials | Discovered new exit (range 13) 668 | -10/Materials | Discovered new exit (range 8) 819 | -10/Materials | Discovered new exit (range 15) 856 | -10/Materials | Repaired Assault Rifle 1362 | -10/Materials | Discovered new exit (range 9) 1376 | -10/Materials | Discovered new exit (range 4) 2013 | -10/Materials | Entered Mines 2088 | -10/Mines | Learned Materials stockpile data 2184 | -10/Mines | Learned location of Storage (-9) 2249 | -10/Mines | Deemed a non-threat by the Exiles lab entrance 2249 | -10/Mines | Discovered new exit (range 5) 2268 | -10/Mines | A weapon hastily lodged in a ceiling crevice suddenly fell to the ground 2336 | -10/Mines | Discovered new exit (range 10) 2477 | -10/Mines | Discovered new exit (range 7) 2495 | -10/Mines | Assisted by bots powering up and referring to "LRC-V3" 2550 | -10/Mines | Received a Rocket Launcher from a helpful Derelict 2778 | -10/Mines | Entered Materials 2778 | -9/Materials | Accompanied by 2 allies 2778 | -9/Materials | Evolved 2 slots: Utility x2 2928 | -9/Materials | Repaired Assault Rifle 3040 | -9/Materials | Discovered new exit (range 15) 3071 | -9/Materials | Build established: Scavenger-Mutant 3131 | -9/Materials | Discovered new exit (range 5) 3699 | -9/Materials | Identified exit to Mines 3699 | -9/Materials | Identified exit to Storage 3784 | -9/Materials | Discovered new exit (range 8) 4244 | -9/Materials | Core integrity fell below 50% 4302 | -9/Materials | Build established: Mutant 4500 | -9/Materials | Discovered new exit (range 4) 4576 | -9/Materials | Repaired Wheel 4609 | -9/Materials | Repaired Autogun 4641 | -9/Materials | Repaired Med. Armor Plating 4700 | -9/Materials | Repaired Imp. Ion Engine 4733 | -9/Materials | Repaired Autogun 5339 | -9/Materials | Entered Mines 5381 | -9/Mines | Discovered new exit (range 8) 5554 | -9/Mines | Learned 2 Materials zone layouts 5578 | -9/Mines | Assembled infested the area 6509 | -9/Mines | Found a hidden stash of uninstalled traps 6630 | -9/Mines | Identified exit to Materials 6652 | -9/Mines | Received a Mining Laser from a helpful Derelict 6957 | -9/Mines | Entered Materials 6957 | -8/Materials | Evolved 2 slots: Utility x2 7846 | -8/Materials | Repaired Arm. Treads? 7893 | -8/Materials | Repaired Autogun 9232 | -8/Materials | Discovered new exit (range 8) 9459 | -8/Materials | Core integrity fell below 50% 9503 | -8/Materials | Entered Factory 9503 | -7/Factory | Evolved 2 slots: Propulsion x1, Utility x1 9599 | -7/Factory | Discovered new exit (range 6) 9761 | -7/Factory | Discovered new exit (range 6) 9763 | -7/Factory | Identified exit to Lower Caves 9996 | -7/Factory | Discovered new exit (range 15) 10171 | -7/Factory | Found Prototype Launcher 10171 | -7/Factory | Identified Rocket Array 10175 | -7/Factory | Fabricated Field Propulsion Drive? 10236 | -7/Factory | Build established: Hacker-Scout 10727 | -7/Factory | Repaired Imp. Sensor Array 10959 | -7/Factory | Entered Lower Caves 10965 | -7/Lower Caves | Learned location of Zion (-7) 10995 | -7/Lower Caves | Learned Factory terminal intel 11221 | -7/Lower Caves | Build established: Hacker-Sprinter 11303 | -7/Lower Caves | Discovered new exit (range 13) 11316 | -7/Lower Caves | Identified exit to Lower Caves 11316 | -7/Lower Caves | Entered another Lower Caves area 11329 | -7/Lower Caves | Encountered a Warlord checkpoint 11406 | -7/Lower Caves | Acquired the password to a Derelict Tinkerer's latest research 11573 | -7/Lower Caves | Lost 3 allies 11619 | -7/Lower Caves | Caught by Unaware searching for contraband prototypes 11622 | -7/Lower Caves | Crushed by falling debris 11673 | -7/Lower Caves | Discovered new exit (range 11) 11677 | -7/Lower Caves | Identified exit to Zion 11677 | -7/Lower Caves | Entered Zion 11690 | -7/Zion | System corruption cleaned by Quarantine Array 11696 | -7/Zion | Found CR-A16's Pointy Stick 11703 | -7/Zion | Discovered new exit (range 13) 11754 | -7/Zion | Learned Factory terminal intel 11778 | -7/Zion | Found Prototype Device 11778 | -7/Zion | Identified Bomb Factory No. 2 11787 | -7/Zion | Acquired unknown access codes intercepted by a Zionite 11811 | -7/Zion | Given A8's code to call for help 11932 | -7/Zion | Visited the Megawrench Repair Shop 11981 | -7/Zion | Learned location of Warlord (-4) 12029 | -7/Zion | Megawrench repaired 7 parts 12098 | -7/Zion | Opened final containment barrier to the Deep Caves 12160 | -7/Zion | Discovered new exit (range 3) 12160 | -7/Zion | Saw the warning signs outside the Deep Caves entrance 12160 | -7/Zion | Identified exit to Deep Caves 12218 | -7/Zion | Identified exit to Proximity Caves 12218 | -7/Zion | Entered Proximity Caves 12275 | -6/Proximity Caves | Discovered new exit (range 14) 12278 | -6/Proximity Caves | Identified exit to Factory 12281 | -6/Proximity Caves | Entered Factory 12281 | -6/Factory | Evolved 2 slots: Utility x2 12282 | -6/Factory | Loaded intel: 26 terminal locations 12402 | -6/Factory | Discovered new exit (range 14) 12549 | -6/Factory | Identified exit to Factory 12682 | -6/Factory | Identified exit to Lower Caves 12786 | -6/Factory | Build established: Hacker-Mutant 12965 | -6/Factory | Entered another Factory area 12965 | -5/Factory | Evolved 2 slots: Propulsion x1, Utility x1 12966 | -5/Factory | Loaded intel: 27 terminal locations 13020 | -5/Factory | Central database locked down 13068 | -5/Factory | Identified exit to Factory 13195 | -5/Factory | Discovered new exit (range 6) 13196 | -5/Factory | Identified exit to Extension 13263 | -5/Factory | Fabricated Adv. Phase Shifter? 13565 | -5/Factory | Repaired Broken Adv. Phase Shifter? 13592 | -5/Factory | Repaired Reaction Control System 13633 | -5/Factory | Build established: Wizard-Sprinter 13798 | -5/Factory | Fabricated Adv. Hacking Suite? 13844 | -5/Factory | Cargo convoy interrupted 13964 | -5/Factory | Entered Extension 13989 | -5/Extension | Rescued a captive Derelict 13990 | -5/Extension | Lost 9 parts (5n3u1w) 14000 | -5/Extension | Rescued a captive Derelict 14078 | -5/Extension | Lost 4 allies 14236 | -5/Extension | Build established: Hacker-Mutant 14277 | -5/Extension | Core integrity fell below 50% 14279 | -5/Extension | Rescued A7 14448 | -5/Extension | Spotted B-75 Beast 14615 | -5/Extension | Allies destroyed B-75 Beast 14616 | -5/Extension | Spotted B-75 Beast 14639 | -5/Extension | Build established: Hacker-Sprinter 14665 | -5/Extension | Lost 3 allies 14670 | -5/Extension | Allies destroyed B-75 Beast 14702 | -5/Extension | Rescued a captive Derelict 14740 | -5/Extension | Rescued a captive Derelict 14850 | -5/Extension | Extracted ID and sensor layout for unrecognized location from A7's data core 15160 | -5/Extension | Discovered exit to Factory (range 10) 15161 | -5/Extension | Discovered new exit (range 6) 15172 | -5/Extension | Identified exit to Cetus 15215 | -5/Extension | Entered Cetus 15215 | -5/Cetus | Accompanied by 10 allies 15256 | -5/Cetus | Spotted Cetus Guard 15256 | -5/Cetus | Spotted Cetus Guard 15256 | -5/Cetus | Spotted Cetus Guard 15258 | -5/Cetus | Allies destroyed Cetus Guard 15264 | -5/Cetus | Spotted Cetus Guard 15279 | -5/Cetus | Allies destroyed Cetus Guard 15306 | -5/Cetus | Discovered new exit (range 16) 15309 | -5/Cetus | Core integrity fell below 20% 15314 | -5/Cetus | Lost 7 allies 15315 | -5/Cetus | Identified exit to Archives 15315 | -5/Cetus | Entered Archives 15333 | -5/Archives | Lost 12 parts (1p4n7u) 15578 | -5/Archives | Build established: Hacker-Mutant 16123 | -5/Archives | Discovered new exit (range 15) 16159 | -5/Archives | Discovered new exit (range 13) 16180 | -5/Archives | Destroyed by Y-72 Warden with Railgun Last Messages --------------- 16165_ Sneak attack on O-32 Director. 16165_ Destroyed Gravmag System. 16170_ Penetrated by Slug. 16170_ Gravmag System destroyed. 16170_ Slug penetrates Wall. 16171_ Acquired 32 matter. 16172_ Slug penetrates Y-72 Warden. 16173_ Imp. Gravmag System destroyed. 16173_ Penetrated by Slug. 16173_ O-32 Director destroyed. 16175_ Adv. Signal Interpreter destroyed. 16175_ Penetrated by Slug. 16175_ Gravmag System destroyed. 16176_ Slug penetrates Wall. 16176_ Slug penetrates Door. 16176_ Acquired Gravmag System. 16178_ Penetrated by Slug. 16178_ Gravmag System destroyed. 16178_ Slug penetrates Wall. 16180_ Acquired Imp. Hacking Suite. Map ----- +----------------------------------------------------+ | ?????????????????????????????????????? | | ?????????????????????????????????????? | | ?????????????????????????????????????? | | ?????????????????????????????????????? | | ?????????????????????????????????????? | | ?????????????????????????????????????? | | ?????????????????????????????????????? | | ?????????????????????????????????????? | | ?????????????????????????????????????? | | ?????????????????????????????????????? | | ?????????????????????????????????????? | | ?????????????????????????????????????? | | ???????????"V"""? ?????????????????? | | ?????????""" """# ?????????????????? | | ???????##"" ""# ##???????????????? | | ######## #???????????????? | | ""??????????????? | | % """?????????????? | | = "??????????????? | | ######## V?????????????? | | #" "" ""?????????????? | | # "" ""??????????????? | | """ """ ""??????????????? | | """# V #########;#####?? | | """"" " Y% * #?? | | """#"""" Y/ /@= < #?? | | """#"""" Y Y #?? | | ######## ###############?? | | ???????## #"" "##???????????????? | | ???????#" #""" ""#????????????????? | | ????????# #"""V ""#????????????????? | | ????????# #""" """#????????????????? | | ???????## ! ### #"###????????????????? | | ???????#" ==" """""#????????????????? | | ???????##% %# """""#????????????????? | | ???????##/*!# """""#????????????????? | | ???????#" # """"#????????????????? | | ???????## + """"#????????????????? | | ????????# # """"#????????????????? | | ????????# # """"#????????????????? | | ????????# < # """"?????????????????? | | ????????# # """"?????????????????? | | ????????############?????????????????? | | ?????????????????????????????????????? | | ?????????????????????????????????????? | | | | | | | | | | | +----------------------------------------------------+ Best States ------------- Heat Dissipation 40 Energy Generation 19 Energy Capacity 500 Matter Stores 300 Matter Capacity 300 Sight Range 16 Robot Scan Range 16 Terrain Scan Density 10 ECM Strength 1 Cloak Strength 2 Additional Mass Support 9 Armor Coverage 600 Phase Shifting 15 Evasion (%) 78 Targeting Accuracy 16 Recoil Reduction 2 Offensive Hacking 34 Defensive Hacking 52 Authchip Count 1 Item Schematics ----------------- ECM Suite | -10/Materials | Hacked Mni. Grenade Launcher | -9/Materials | Scanalyzed Field Propulsion Drive | -7/Factory | Hacked System Shield | -7/Factory | Scanalyzed Reaction Control System | -7/Factory | Scanalyzed Mic. Nuclear Core | -7/Factory | Scanalyzed Weight Redist. System | -7/Factory | Scanalyzed Cesium-ion Thruster | -7/Factory | Scanalyzed Mak. Sword | -7/Factory | Scanalyzed Phase Cannon | -7/Zion | Archive Power Maul | -7/Zion | Archive Weapon Cycler | -7/Zion | Archive Hvy. Plasma Cannon | -7/Zion | Archive Adv. System Restoration Module | -7/Zion | Archive Shock Absorption System | -7/Zion | Archive Focal Shield | -7/Zion | Archive Xenon Bombardment Thruster | -7/Zion | Archive Angular Momentum Engine | -7/Zion | Archive Hvy. Battle Rifle | -7/Zion | Archive Imp. Heavy Armor Plating | -7/Zion | Archive Gauss Cannon | -7/Zion | Archive Fusion Compressor | -7/Zion | Archive Energy Filter | -7/Zion | Archive KE Penetrator | -7/Zion | Archive Adv. Weight Redist. System | -6/Factory | Scanalyzed Adv. Hacking Suite | -5/Factory | Hacked Adv. Phase Shifter | -5/Factory | Scanalyzed Cloaking Device | -5/Factory | Scanalyzed Mic. Fission Core | -5/Factory | Scanalyzed Robot Schematics ------------------ R-06 Scavenger | -7/Zion | Archive M-14 Sweeper | -7/Zion | Archive X-77 Beamer | -7/Zion | Archive Fabricated ------------ Field Propulsion Drive | x2 | -7/Factory Adv. Phase Shifter | x1 | -5/Factory | Preloaded Adv. Hacking Suite | x1 | -5/Factory Alien Tech Used ----------------- None Achievements -------------- None Challenges ------------ None Game ------ Seed MomentumShrapnelScanner Manual? 0 Play Time 02:59:18 Cumulative 97.2 hours Start 2024.05.11 @ 16:18:21 End 2024.05.11 @ 19:27:28 Sessions 1 Manual Loads 0 Difficulty Rogue Special Mode None Game No. 63 Rogue 63 Adventurer 0 Explorer 0 Win Type - Total 1 Types 1/0/0/0/0/0/0/0/0 Lore% 57 Gallery% 47 Achievement% 44 Wizard Run 0 Options --------- Layout 0 ASCII 0 Keyboard 0 Movement Mouse Keybinds 0 Fullscreen 1 Font 18/SmallcapsGlow Map View 76x50 Zoom Use 0% Tactical HUD 1 Map Filters NONE Filters NONE Steam 1 RUN: 225dca3b-06d2-4197-a1b9-7050730af266